bitfinex/quotes_SOLUSD_20251120
["timestamp","ask_amount","ask_price","bid_price","bid_amount"]
[1763647045170,0.69,141.06,141.03,6.43640589]
[1763647045371,1.72,141.05,141.04,6.43640589]
[1763647045675,18.81096,141.1,141.04,6.43640589]
[1763647045889,1.72,141.09,141.08,6.43640589]
[1763647046049,1.72,141.09,141.04,6.43640589]
[1763647046252,0.69,141.1,141.08,6.43640589]
[1763647046549,1.72,141.09,141.06,7.08911321]
[1763647046759,1.72,141.09,141.07,6.43640589]
[1763647047182,1.72,141.09,141.05,7.08952383]
[1763647047389,1.72,141.09,141.05,24.8137351]
[1763647047579,0.69,141.13,141.08,6.43640589]
[1763647047777,1.72,141.1,141.09,6.43640589]
[1763647048415,1.72,141.1,141.08,6.43640589]
[1763647049297,1.72,141.1,141.08,13.52444528]
[1763647049805,1.72,141.11,141.09,6.43640589]
[1763647049983,1.72,141.11,141.1,6.43640589]
[1763647050375,0.69,141.15,141.1,6.43640589]
[1763647050576,0.69,141.17,141.13,6.43640589]
[1763647050778,0.69,141.17,141.11,24.8033449]
[1763647050779,1.72,141.17,141.15,6.43640589]
[1763647051102,1.72,141.17,141.16,6.43640589]
[1763647051274,18.12096,141.14,141.08,6.43640589]
[1763647051470,1.72,141.13,141.08,6.43640589]
[1763647051701,1.72,141.12,141.09,6.43640589]
[1763647051915,1.72,141.11,141.1,6.43640589]
[1763647052112,0.69,141.13,141.1,6.43640589]
[1763647052289,1.72,141.12,141.08,0.72]
[1763647052493,7.77437907,141.16,141.11,6.43640589]
[1763647052708,7.77437907,141.16,141.1,7.08675701]
[1763647052709,1.72,141.15,141.13,6.43640589]
[1763647052883,2.41,141.15,141.11,6.43640589]
[1763647053085,0.69,141.14,141.11,6.43640589]
[1763647053281,7.12640589,141.14,141.08,6.43640589]
[1763647053482,7.12640589,141.14,141.04,0.72]
[1763647053483,6.43640589,141.12,141.04,0.72]
[1763647053789,1.72,141.11,141.08,6.43640589]
[1763647054001,1.72,141.1,141.08,6.43640589]
[1763647054201,2.41,141.1,141.08,6.43640589]
[1763647054407,0.69,141.09,141.04,7.09004624]
[1763647054605,7.77799908,141.09,141.05,6.43640589]
[1763647054816,7.77799908,141.09,141.06,6.43640589]
[1763647055319,0.69,141.08,141.05,6.43640589]
[1763647055525,0.69,141.08,140.99,46.97232156]
[1763647055526,0.69,141.08,141.04,6.43640589]
[1763647055811,0.69,141.08,141.06,6.43640589]
[1763647055998,1.72,141.07,141.05,6.43640589]
[1763647056414,1.72,141.07,141.04,6.43640589]
[1763647056602,9.49884296,141.07,141.04,6.43640589]
[1763647056800,1.72,141.07,141.04,6.43640589]
[1763647057002,9.4986948,141.07,141.04,6.43640589]
[1763647057311,2.41,141.07,141.04,6.43640589]
[1763647057990,0.69,141.06,141.02,6.43640589]
[1763647058991,7.0896845,141.05,141.02,6.43640589]
[1763647059491,1.72,141.04,141.03,6.43640589]
[1763647060895,0.69,141.09,141.03,14.24709581]
[1763647061097,7.77798307,141.09,141.05,6.43640589]
[1763647061419,1.72,141.08,141.04,6.43640589]
[1763647061607,2.41,141.08,141.04,6.43640589]
[1763647061927,0.69,141.08,141.06,6.43640589]
[1763647062090,0.69,141.08,141.05,6.43640589]
[1763647062091,1.72,141.07,141.05,6.43640589]
[1763647062292,1.72,141.07,141.04,6.43640589]
[1763647062499,2.41,141.07,141.04,6.43640589]
[1763647062699,7.0896845,141.05,141.02,6.43640589]
[1763647062921,1.72,141.04,141.02,6.43640589]
[1763647063428,1.72,141.04,141.01,6.43640589]
[1763647063619,2.41,141.04,141.01,6.43640589]
[1763647063807,2.41,141.04,140.99,0.72]
[1763647064011,2.41,141.04,141.01,6.43640589]
[1763647064601,9.50046335,141.04,141.01,6.43640589]
[1763647064931,0.69,141.03,141.0,6.43640589]
[1763647065103,0.69,141.03,140.95,29.96504266]
[1763647065104,0.69,141.03,140.98,6.43640589]
[1763647065521,7.12640589,141.03,140.98,6.43640589]
[1763647066017,0.69,141.02,140.98,6.43640589]
[1763647066224,1.72,141.01,140.98,6.43640589]
[1763647066719,9.50183195,141.01,140.98,6.43640589]
[1763647067510,0.69,141.0,140.93,18.45867279]
[1763647067708,0.69,141.0,140.94,7.81521782]
[1763647068010,0.69,141.0,140.97,6.43640589]
[1763647068732,8.81183195,141.01,140.97,6.43640589]
[1763647068914,0.69,141.0,140.97,6.43640589]
[1763647069427,0.69,141.0,140.98,6.43640589]
[1763647069604,0.69,141.0,140.97,6.43640589]
[1763647069807,1.72,141.01,140.98,6.43640589]
[1763647070020,2.41,141.01,140.98,6.43640589]
[1763647070222,2.41,141.01,140.96,7.09419232]
[1763647070527,9.49182835,141.01,140.98,6.43640589]
[1763647071730,0.68,141.0,140.97,6.43640589]
[1763647071928,6.43640589,140.99,140.94,6.43640589]
[1763647072142,1.72,140.98,140.94,6.43640589]
[1763647072346,6.43640589,140.96,140.86,0.68]
[1763647072513,6.43640589,140.94,140.89,6.43640589]
[1763647072835,7.09521782,140.94,140.89,6.43640589]
[1763647073048,0.68,140.96,140.91,6.43640589]
[1763647073248,1.72,140.95,140.9,0.68]
[1763647074413,1.72,140.97,140.96,6.43640589]
[1763647074628,1.72,140.98,140.96,13.53057551]
[1763647075320,7.77227252,141.0,140.96,13.53057551]
[1763647075943,7.77227252,141.0,140.89,9.78882769]
[1763647075944,2.4,140.99,140.89,9.78882769]
[1763647076138,2.4,140.99,140.94,6.43640589]
[1763647076638,0.68,140.98,140.94,6.43640589]
[1763647076940,7.77335305,140.98,140.94,13.53160083]
[1763647077141,14.20975894,140.98,140.91,17.74094317]
[1763647077346,0.68,140.97,140.93,6.43640589]
[1763647077544,1.72,140.96,140.9,7.09723207]
[1763647077727,1.72,140.96,140.92,6.43640589]
[1763647078042,2.4,140.96,140.93,6.43640589]
[1763647078423,1.72,140.96,140.94,6.43640589]
[1763647078952,1.72,140.96,140.95,13.53112032]
[1763647079756,7.09300445,140.99,140.93,7.77523755]
[1763647079757,0.68,140.99,140.93,7.77523755]
[1763647079958,2.4,140.96,140.93,13.53164344]
[1763647080257,2.4,140.96,140.93,6.43640589]
[1763647080561,2.4,140.96,140.94,6.43640589]
[1763647080728,8.81466818,140.96,140.93,6.43640589]
[1763647080928,0.68,140.95,140.92,11.23960701]
[1763647081646,0.68,140.95,140.93,11.23960701]
[1763647081817,0.68,140.95,140.91,7.09642074]
[1763647082023,0.68,140.95,140.91,11.23960701]
[1763647082443,0.68,140.95,140.92,11.23960701]
[1763647082637,1.72,140.96,140.94,11.23960701]
[1763647082835,7.77267931,141.0,140.95,18.33432144]
[1763647083057,0.68,141.0,140.97,11.23960701]
[1763647083244,1.72,141.01,140.98,11.23960701]
[1763647083553,1.72,141.01,140.94,7.09512751]
[1763647083844,1.72,141.01,140.98,11.23960701]
[1763647084165,2.4,141.01,140.98,11.23960701]
[1763647084339,0.68,141.0,140.97,11.23960701]
[1763647084674,0.68,141.0,140.96,11.23960701]
[1763647084858,7.77227165,141.0,140.97,11.23960701]
[1763647085060,7.77227165,141.0,140.96,11.23960701]
[1763647085256,0.68,140.99,140.96,11.23960701]
[1763647085571,1.72,140.98,140.96,11.23960701]
[1763647086678,1.72,140.98,140.91,31.11882769]
[1763647086679,0.68,140.97,140.93,11.23960701]
[1763647086865,0.68,140.97,140.86,12.18882769]
[1763647087176,0.68,140.97,140.89,11.23960701]
[1763647087345,0.68,140.97,140.87,0.68]
[1763647087548,11.23960701,140.95,140.9,11.23960701]
[1763647087975,0.68,140.94,140.87,0.68]
[1763647088268,1.72,140.93,140.9,11.23960701]
[1763647088670,1.72,140.93,140.91,11.23960701]
[1763647088866,1.72,140.93,140.9,11.23960701]
[1763647089072,7.7740874,140.97,140.92,11.23960701]
[1763647089367,7.7740874,140.97,140.79,5.8919383]
[1763647089368,27.90978769,140.95,140.79,5.8919383]
[1763647089561,27.90978769,140.95,140.78,1.93593088]
[1763647089562,11.23960701,140.88,140.83,11.23960701]
[1763647089773,1.72,140.87,140.83,11.23960701]
[1763647089945,13.63960701,140.87,140.82,11.23960701]
[1763647090147,0.68,140.86,140.8,0.68]
[1763647090345,19.01897969,140.86,140.81,11.23960701]
[1763647090767,0.68,140.85,140.8,7.10193685]
[1763647090989,1.72,140.84,140.81,11.23960701]
[1763647091158,1.72,140.84,140.78,9.03887122]
[1763647091474,7.09937268,140.86,140.8,11.23960701]
[1763647091660,7.09937268,140.86,140.81,11.23960701]
[1763647091856,1.72,140.85,140.79,0.68]
[1763647092070,1.72,140.85,140.82,11.23960701]
[1763647092270,8.81977853,140.85,140.82,11.23960701]
[1763647092582,1.72,140.86,140.83,11.23960701]
[1763647092783,1.72,140.86,140.82,11.23960701]
[1763647093474,11.23960701,140.83,140.78,1.93593088]
[1763647093655,11.23960701,140.83,140.78,13.17553789]
[1763647093857,1.72,140.82,140.79,11.23960701]
[1763647094165,1.72,140.83,140.81,11.23960701]
[1763647094357,2.4,140.83,140.8,11.23960701]
[1763647094677,2.4,140.83,140.79,11.23960701]
[1763647094678,9.5008977,140.83,140.79,11.23960701]
[1763647094891,0.68,140.82,140.78,2.61593088]
[1763647095073,0.68,140.82,140.78,13.17553789]
[1763647095390,0.68,140.82,140.78,1.93593088]
[1763647095692,0.68,140.82,140.78,13.17553789]
[1763647095981,11.91960701,140.82,140.78,1.93593088]
[1763647096384,7.78227093,140.81,140.78,1.93593088]
[1763647096570,1.72,140.8,140.78,1.93593088]
[1763647097900,1.72,140.8,140.78,1.43593088]
[1763647098394,8.82251013,140.8,140.78,1.43593088]
[1763647098997,9.50251013,140.8,140.78,1.43593088]
[1763647099184,1.72,140.8,140.78,12.67553789]
[1763647099496,1.72,140.83,140.79,11.91960701]
[1763647099707,1.72,140.83,140.8,11.23960701]
[1763647099883,2.4,140.83,140.8,11.23960701]
[1763647100285,1.72,140.83,140.8,11.23960701]
[1763647100485,0.7,140.82,140.79,11.23960701]
[1763647101106,8.82082419,140.83,140.8,11.23960701]
[1763647101482,1.72,140.83,140.8,11.23960701]
[1763647101699,35.86949493,140.86,140.78,8.53908558]
[1763647101700,11.93960701,140.86,140.82,11.23960701]
[1763647102004,7.09893513,140.87,140.83,11.23960701]
[1763647102178,1.72,140.85,140.83,11.23960701]
[1763647102380,1.72,140.85,140.82,11.23960701]
[1763647102807,11.93960701,140.84,140.79,11.23960701]
[1763647103175,0.7,140.83,140.79,11.23960701]
[1763647103380,1.72,140.82,140.79,11.23960701]
[1763647103797,2.42,140.82,140.79,11.23960701]
[1763647104011,1.72,140.81,140.8,11.23960701]
[1763647105083,7.10107334,140.83,140.8,11.23960701]
[1763647105275,1.72,140.82,140.8,11.23960701]
[1763647106408,18.12096,140.86,140.81,11.94960701]
[1763647106409,18.82096,140.86,140.81,11.94960701]
[1763647106605,18.82096,140.86,140.79,24.85964661]
[1763647106606,2.42,140.85,140.82,11.23960701]
[1763647106780,11.23960701,140.84,140.8,11.23960701]
[1763647107107,29.36056701,140.83,140.78,12.67553789]
[1763647107278,1.72,140.82,140.78,12.67553789]
[1763647107479,2.42,140.82,140.78,12.67553789]
[1763647107679,2.42,140.82,140.78,13.38553789]
[1763647107880,0.7,140.81,140.78,12.67553789]
[1763647108176,11.23960701,140.8,140.78,1.43593088]
[1763647108398,12.95960701,140.79,140.78,1.43593088]
[1763647108596,19.04238419,140.79,140.78,1.43593088]
[1763647108804,20.76238419,140.79,140.78,1.43593088]
[1763647109182,19.04238419,140.79,140.78,1.43593088]
[1763647109382,20.76238419,140.79,140.78,1.43593088]
[1763647109592,9.52277718,140.79,140.78,1.43593088]
[1763647109783,20.76238419,140.79,140.78,1.43593088]
[1763647110103,1.72,140.79,140.78,1.43593088]
[1763647110604,9.52277718,140.79,140.78,1.43593088]
[1763647111519,20.76238419,140.79,140.78,1.43593088]
[1763647112612,2.42,140.79,140.78,1.43593088]
[1763647112784,29.36056701,140.8,140.78,1.43593088]
[1763647113110,1.72,140.79,140.78,1.43593088]
[1763647113304,2.42,140.79,140.78,1.43593088]
[1763647113907,1.72,140.79,140.78,1.43593088]
[1763647114299,13.66960701,140.79,140.78,1.43593088]
[1763647114686,20.77238419,140.79,140.78,1.43593088]
[1763647115200,1.72,140.79,140.78,1.43593088]
[1763647115380,2.43,140.79,140.78,1.43593088]
[1763647115587,18.12096,140.76,140.71,0.71]
[1763647116082,18.34197898,140.8,140.75,11.23960701]
[1763647116292,0.62,140.81,140.76,11.23960701]
[1763647116293,12.95960701,140.81,140.76,11.23960701]
[1763647116593,8.82269546,140.8,140.76,11.23960701]
[1763647116793,8.82269546,140.8,140.77,0.71]
[1763647117300,1.72,140.79,140.77,0.71]
[1763647119100,1.72,140.79,140.75,11.94960701]
[1763647119101,8.82282223,140.79,140.75,11.94960701]
[1763647119302,8.82282223,140.79,140.76,0.71]
[1763647120593,7.10282223,140.79,140.76,0.71]
[1763647120793,1.72,140.78,140.76,0.71]
[1763647120989,7.10282223,140.79,140.76,0.71]
[1763647120990,8.82282223,140.79,140.76,0.71]
[1763647124116,20.06242924,140.79,140.76,0.71]
[1763647125438,11.23960701,140.78,140.73,0.71]
[1763647125618,26.57976519,140.79,140.74,0.71]
[1763647125619,11.23960701,140.77,140.74,0.71]
[1763647126021,1.72,140.76,140.74,0.71]
[1763647126837,1.72,140.78,140.74,7.81524984]
[1763647127037,8.82329961,140.78,140.74,7.81524984]
[1763647127213,8.82329961,140.78,140.75,0.71]
[1763647128050,20.06290662,140.78,140.72,11.23960701]
[1763647128223,11.23960701,140.77,140.73,0.71]
[1763647128619,11.23960701,140.8,140.74,18.34490756]
[1763647128938,11.23960701,140.8,140.75,11.23960701]
[1763647128939,1.72,140.79,140.75,11.23960701]
[1763647129147,12.95960701,140.79,140.75,0.71]
[1763647129445,12.95960701,140.79,140.76,0.71]
[1763647130233,1.72,140.79,140.76,0.71]
[1763647130446,29.36056701,140.81,140.76,0.71]
[1763647130736,11.23960701,140.8,140.76,0.71]
[1763647131518,12.95960701,140.79,140.76,0.71]
[1763647131746,12.95960701,140.79,140.74,7.77510858]
[1763647131922,12.95960701,140.79,140.75,0.67]
[1763647132116,1.72,140.79,140.75,0.67]
[1763647132320,11.23960701,140.78,140.75,0.67]
[1763647132543,7.10328171,140.78,140.75,0.67]
[1763647132722,18.34288872,140.78,140.75,0.67]
[1763647133724,1.72,140.77,140.75,0.67]
[1763647134320,18.12096,140.76,140.73,0.67]
[1763647134830,1.72,140.77,140.73,0.67]
[1763647134831,8.82420304,140.77,140.73,0.67]
[1763647135035,20.68381005,140.77,140.73,0.67]
[1763647135246,20.68381005,140.77,140.71,18.34623609]
[1763647135247,11.23960701,140.76,140.71,0.67]
[1763647135434,1.72,140.75,140.72,0.67]
[1763647136733,8.82485325,140.75,140.72,0.67]
[1763647137657,1.72,140.75,140.72,7.7761285]
[1763647137827,18.34408014,140.76,140.72,7.7761285]
[1763647138029,1.72,140.75,140.73,0.67]
[1763647138625,18.34408014,140.76,140.68,18.44008117]
[1763647138626,11.85960701,140.74,140.68,18.44008117]
[1763647138839,20.06524675,140.74,140.69,7.77771351]
[1763647139236,20.06524675,140.74,140.7,0.67]
[1763647139458,1.72,140.74,140.7,0.67]
[1763647139662,1.72,140.74,140.7,11.90960701]
[1763647139831,1.72,140.74,140.7,0.67]
[1763647140031,1.72,140.74,140.71,0.67]
[1763647140740,7.10580544,140.73,140.69,18.34732052]
[1763647140934,7.10580544,140.73,140.7,0.67]
[1763647141323,18.34504826,140.74,140.7,0.67]
[1763647141525,1.72,140.73,140.7,0.67]
[1763647142936,8.82587482,140.73,140.7,0.67]
[1763647143247,8.19649264,140.73,140.68,7.77801456]
[1763647143441,8.19649264,140.73,140.69,0.67]
[1763647143643,1.72,140.73,140.69,0.67]
[1763647143852,104.3,140.74,140.7,6.47649264]
[1763647144152,113.12532312,140.74,140.71,0.67]
[1763647144564,119.60181576,140.74,140.71,0.67]
[1763647144761,113.12532312,140.74,140.71,0.67]
[1763647144933,115.84551787,140.74,140.71,0.67]
[1763647145253,113.12532312,140.74,140.71,0.67]
[1763647146154,115.84551787,140.74,140.71,0.67]
[1763647146462,106.02,140.74,140.71,0.67]
[1763647146629,104.3,140.74,140.71,0.67]
[1763647146954,104.3,140.74,140.72,7.1063104]
[1763647147162,104.3,140.74,140.67,1.72]
[1763647147163,116.46555399,140.74,140.69,7.107647]
[1763647147457,2.72019475,140.72,140.67,3.39019475]
[1763647147659,1.72,140.71,140.65,1.82]
[1763647147857,2.72019475,140.7,140.65,7.87981432]
[1763647148258,2.72019475,140.7,140.66,0.67]
[1763647149050,2.72019475,140.69,140.66,0.67]
[1763647149257,2.72019475,140.69,140.63,7.21067827]
[1763647149258,4.44019475,140.68,140.63,7.21067827]
[1763647149456,0.62,140.68,140.63,0.1]
[1763647149664,1.99999999,140.76,140.67,2.72019475]
[1763647149665,1.72,140.71,140.67,2.72019475]
[1763647149835,1.72,140.76,140.7,2.72019475]
[1763647150041,2.72019475,140.77,140.72,2.72019475]
[1763647150360,3.34019475,140.78,140.73,2.72019475]
[1763647150536,7.10325596,140.79,140.69,1.72]
[1763647150537,7.10075978,140.83,140.75,2.72019475]
[1763647150732,3.34019475,140.81,140.76,2.72019475]
[1763647150933,1.72,140.8,140.77,7.77378631]
[1763647151164,2.72019475,140.81,140.77,7.77378631]
[1763647151467,1.72,140.8,140.77,0.67]
[1763647151671,1.72,140.8,140.76,9.82428394]
[1763647151871,1.72,140.8,140.76,7.77408919]
[1763647152167,1.72,140.8,140.76,9.82428394]
[1763647152379,1.72,140.8,140.76,3.39019475]
[1763647152540,1.72,140.8,140.77,0.67]
[1763647152746,24.59144853,140.81,140.77,0.67]
[1763647152948,31.69358082,140.81,140.77,0.67]
[1763647153152,24.59144853,140.81,140.77,0.67]
[1763647153373,19.84096,140.81,140.77,0.67]
[1763647153544,16.25931622,140.88,140.77,0.67]
[1763647153545,7.09863033,140.88,140.8,6.47048853]
[1763647153744,13.56911886,140.88,140.83,6.47048853]
[1763647153950,1.72,140.87,140.83,7.14048853]
[1763647154166,1.72,140.87,140.83,0.67]
[1763647154857,6.47048853,140.86,140.81,6.47048853]
[1763647155172,6.47048853,140.84,140.79,6.47048853]
[1763647155467,1.72,140.83,140.79,0.67]
[1763647155639,1.72,140.82,140.79,7.14048853]
[1763647155846,1.72,140.82,140.8,0.67]
[1763647156039,1.72,140.82,140.8,7.14048853]
[1763647156459,25.21979371,140.87,140.81,7.14048853]
[1763647156651,7.09837537,140.88,140.83,13.57089986]
[1763647156853,8.19048853,140.87,140.83,7.10041133]
[1763647157049,8.19048853,140.87,140.83,7.77041133]
[1763647158150,25.21885381,140.89,140.84,0.67]
[1763647158354,1.72,140.88,140.82,7.77121789]
[1763647158561,6.47048853,140.87,140.83,6.47048853]
[1763647158755,13.56940692,140.87,140.83,6.47048853]
[1763647158946,13.56940692,140.87,140.83,7.14048853]
[1763647159150,1.72,140.86,140.83,0.67]
[1763647159552,1.72,140.86,140.83,14.24124311]
[1763647159857,1.72,140.87,140.84,7.14048853]
[1763647160055,0.62,140.92,140.86,6.47048853]
[1763647160247,17.73930925,140.93,140.89,6.47048853]
[1763647160248,0.62,140.93,140.89,6.47048853]
[1763647160573,1.72,140.91,140.89,6.47048853]
[1763647160759,1.72,140.92,140.89,14.2479314]
[1763647161146,7.91536994,140.94,140.89,7.15048853]
[1763647161362,2.34,140.93,140.89,6.47048853]
[1763647161775,8.81048853,140.93,140.88,13.56872816]
[1763647161956,6.47048853,140.91,140.86,13.56931198]
[1763647162163,8.19048853,140.9,140.85,6.47048853]
[1763647162486,1.72,140.89,140.85,6.47048853]
[1763647162659,1.72,140.89,140.86,0.68]
[1763647162854,1.72,140.89,140.86,14.24964471]
[1763647163064,1.72,140.89,140.86,7.77915618]
[1763647163360,25.21711959,140.93,140.86,7.77915618]
[1763647163361,1.72,140.9,140.88,6.47048853]
[1763647163571,0.2,140.94,140.89,6.47048853]
[1763647163774,1.92,140.94,140.92,6.47048853]
[1763647164072,0.2,140.94,140.9,0.68]
[1763647164280,0.2,140.94,140.91,6.47048853]
[1763647164449,0.2,140.94,140.92,6.47048853]
[1763647164654,1.92,140.94,140.92,6.47048853]
[1763647164974,1.92,140.94,140.93,6.47048853]
[1763647165277,0.2,140.94,140.93,6.47048853]
[1763647165681,0.2,140.94,140.93,7.15048853]
[1763647166052,0.2,140.94,140.93,0.68]
[1763647166450,0.2,140.94,140.93,7.15048853]
[1763647166680,0.2,140.94,140.92,13.56665984]
[1763647166985,0.2,140.94,140.92,14.24665984]
[1763647167180,0.2,140.94,140.91,6.47048853]
[1763647167755,7.91523272,140.94,140.9,6.47048853]
[1763647167991,7.91523272,140.94,140.88,0.68]
[1763647168155,6.47048853,140.93,140.88,7.15048853]
[1763647168365,1.72,140.92,140.88,7.15048853]
[1763647168564,1.72,140.92,140.88,0.68]
[1763647168777,1.72,140.92,140.89,7.15048853]
[1763647168979,0.2,140.94,140.91,6.47048853]
[1763647169169,0.2,140.94,140.92,6.47048853]
[1763647169170,1.92,140.94,140.92,6.47048853]
[1763647169376,1.92,140.94,140.9,0.68]
[1763647170071,0.2,140.94,140.9,0.68]
[1763647170963,0.2,140.94,140.91,7.0967284]
[1763647171370,0.2,140.94,140.92,0.69]
[1763647173410,0.2,140.94,140.81,50.0]
[1763647173694,6.47048853,140.9,140.85,14.26015007]
[1763647173982,6.47048853,140.9,140.86,0.69]
[1763647173983,1.72,140.89,140.86,0.69]
[1763647175285,1.72,140.89,140.86,7.78916471]
[1763647175475,1.72,140.89,140.86,0.69]
[1763647175667,1.72,140.89,140.86,7.78923547]
[1763647176994,1.72,140.89,140.87,0.69]
[1763647177496,8.81724071,140.9,140.87,0.69]
[1763647177685,6.47048853,140.88,140.82,14.26175255]
[1763647177872,8.19048853,140.87,140.82,6.47048853]
[1763647178072,8.19048853,140.87,140.83,0.69]
[1763647179164,15.28928914,140.87,140.83,7.79058728]
[1763647180189,1.72,140.87,140.83,7.10058728]
[1763647180373,1.72,140.87,140.83,14.26107581]
[1763647180571,8.81881182,140.87,140.83,14.26107581]
[1763647181292,9.43881182,140.87,140.83,7.16048853]
[1763647181492,15.90930035,140.87,140.83,0.69]
[1763647182194,7.71881182,140.87,140.83,0.69]
[1763647182382,1.72,140.86,140.83,0.69]
[1763647182582,7.09881182,140.87,140.83,0.69]
[1763647183507,1.72,140.86,140.83,7.79062648]
[1763647184295,122.66505374,140.89,140.84,6.47048853]
[1763647184296,112.01806526,140.89,140.84,6.47048853]
[1763647184472,1.72,140.88,140.84,6.47048853]
[1763647184685,8.81048853,140.88,140.83,13.57111501]
[1763647184991,7.09048853,140.87,140.82,6.47048853]
[1763647185194,7.09924747,140.86,140.82,7.16048853]
[1763647185370,1.72,140.85,140.82,0.69]
[1763647185569,1.72,140.85,140.81,6.47048853]
[1763647185799,1.72,140.85,140.82,6.47048853]
[1763647186003,1.72,140.85,140.82,7.16048853]
[1763647186383,1.72,140.85,140.82,14.2617391]
[1763647186581,7.09924747,140.86,140.82,7.16048853]
[1763647186781,7.09924747,140.86,140.82,14.26174876]
[1763647186999,1.72,140.85,140.82,7.79126023]
[1763647187190,8.81048853,140.85,140.8,6.47048853]
[1763647187497,0.62,140.84,140.8,6.47048853]
[1763647187673,1.72,140.83,140.79,7.10277639]
[1763647187878,1.72,140.82,140.8,6.47048853]
[1763647188293,0.62,140.84,140.79,14.26326492]
[1763647188604,1.72,140.82,140.79,14.26326492]
[1763647189287,1.72,140.82,140.79,7.16048853]
[1763647189482,1.72,140.82,140.8,6.47048853]
[1763647189697,104.3,140.86,140.8,6.47048853]
[1763647189994,1.72,140.85,140.83,6.47048853]
[1763647190188,7.09835771,140.88,140.81,0.69]
[1763647190189,7.09835771,140.88,140.84,6.47048853]
[1763647190487,1.72,140.87,140.84,6.47048853]
[1763647190694,8.81881472,140.87,140.84,13.57072697]
[1763647190894,1.72,140.87,140.84,14.29072697]
[1763647191094,8.81878522,140.87,140.84,13.57072697]
[1763647191298,8.81878522,140.87,140.84,6.47048853]
[1763647191604,8.81878522,140.87,140.83,7.10053078]
[1763647191911,18.74096,140.88,140.83,7.82053078]
[1763647191912,25.83926405,140.88,140.83,7.82053078]
[1763647192083,1.72,140.87,140.83,7.19048853]
[1763647192404,2.34,140.87,140.83,14.29121803]
[1763647192800,9.4389733,140.87,140.83,10.53548112]
[1763647192989,8.8189733,140.87,140.83,10.53548112]
[1763647193182,12.15372492,140.87,140.82,7.10116419]
[1763647193611,12.15372492,140.87,140.82,10.53591581]
[1763647195101,112.01954941,140.86,140.82,0.72]
[1763647195301,2.71475162,140.85,140.8,2.71475162]
[1763647195618,4.43475162,140.84,140.79,7.10244947]
[1763647195782,5.05475162,140.84,140.79,10.53720109]
[1763647195988,2.34,140.84,140.8,3.43475162]
[1763647196411,9.44053332,140.84,140.8,7.82222027]
[1763647196592,12.15528494,140.84,140.79,3.43475162]
[1763647196796,12.15528494,140.84,140.79,2.71475162]
[1763647196998,1.72,140.84,140.8,3.43475162]
[1763647197222,27.93574835,140.85,140.8,3.43475162]
[1763647197444,104.3,140.86,140.82,2.71475162]
[1763647197613,1.72,140.84,140.82,2.71475162]
[1763647198005,104.3,140.86,140.83,0.72]
[1763647198235,1.72,140.85,140.83,3.43475162]
[1763647198421,1.72,140.85,140.83,10.53548758]
[1763647198806,1.72,140.85,140.83,7.10073596]
[1763647199511,10.4337719,140.87,140.83,7.10073596]
[1763647199711,1.72,140.86,140.83,10.53548758]
[1763647200538,1.72,140.86,140.83,7.82073596]
[1763647200907,1.72,140.85,140.83,7.10073596]
[1763647201108,1.72,140.85,140.83,0.72]
[1763647201350,1.72,140.85,140.81,3.43475162]
[1763647201504,1.72,140.85,140.81,0.72]
[1763647201849,17.74508912,140.89,140.83,2.71475162]
[1763647201850,2.71475162,140.88,140.83,2.71475162]
[1763647202151,2.71475162,140.87,140.83,0.72]
[1763647202304,1.72,140.87,140.84,3.43475162]
[1763647202507,1.72,140.87,140.84,10.53483118]
[1763647202828,1.72,140.87,140.84,7.82007956]
[1763647203007,1.72,140.87,140.84,7.10007956]
[1763647203417,1.72,140.87,140.84,12.0619055]
[1763647204739,0.62,140.92,140.86,4.24182594]
[1763647204927,0.62,140.92,140.87,4.24182594]
[1763647204928,1.72,140.91,140.87,4.24182594]